lending/lending_fUSD_20240510
["ID","MTS","AMOUNT","RATE_DAILY","PERIOD"]
[326752644,1715308255150,-3157.95,0.00027397,4]
[326752645,1715308255159,-541.83,0.00027397,4]
[326752646,1715308255170,-1146.12,0.00027397,4]
[326752647,1715308255179,-500.0,0.00027397,4]
[326752648,1715308255189,-2465.43,0.00027397,4]
[326752649,1715308255199,-13928.74,0.00027397,4]
[326752650,1715308255208,-500.0,0.00027397,4]
[326752651,1715308255218,-1226.97,0.00027397,4]
[326752652,1715308255227,-787.8,0.00027397,2]
[326752653,1715308255236,-603.23,0.00027397,4]
[326752654,1715308255245,-5384.42,0.00027397,4]
[326752655,1715308255255,-500.0,0.00027397,4]
[326752656,1715308255264,-1040.34,0.00027397,4]
[326752657,1715308255274,-500.0,0.00027397,4]
[326752658,1715308255283,-1166.39,0.00027397,4]
[326752659,1715308255293,-921.34,0.00027397,4]
[326752660,1715308255303,-2458.81,0.00027397,4]
[326752661,1715308255312,-9136.04,0.00027397,4]
[326752662,1715308255322,-507.0135691,0.00027397,4]
[326752663,1715308255331,-500.0,0.00027397,4]
[326752664,1715308255340,-528.57,0.00027397,4]
[326752665,1715308255349,-1637.92,0.00027397,4]
[326752666,1715308255359,-760.62,0.00027397,4]
[326752667,1715308255368,-6303.8,0.00027397,4]
[326752668,1715308255378,-1226.75,0.00027397,4]
[326752669,1715308255387,-176.41761787,0.00027397,4]
[326752670,1715308255397,-151.0,0.00027397,7]
[326752671,1715308255406,-154.154342,0.00027397,7]
[326752672,1715308255416,-592.77,0.00027397,4]
[326752673,1715308255426,-1219.66,0.00027397,4]
[326752674,1715308255437,-1585.33,0.00027397,4]
[326752675,1715308255447,-2907.59,0.00027397,4]
[326752676,1715308255460,-591.04,0.00027397,4]
[326752677,1715308255470,-509.06031978,0.00027397,4]
[326752678,1715308255480,-2151.37,0.00027397,4]
[326752679,1715308255489,-151.0,0.00027397,7]
[326752680,1715308255499,-151.83510145,0.00027397,7]
[326752681,1715308255508,-2700.48,0.00027397,4]
[326752682,1715308255519,-2936.79,0.00027397,4]
[326752683,1715308255529,-520.65,0.00027397,4]
[326752684,1715308255539,-611.93,0.00027397,4]
[326752685,1715308255549,-500.0,0.00027397,4]
[326752686,1715308255559,-500.0,0.00027397,4]
[326752687,1715308255568,-513.91907289,0.00027397,4]
[326752688,1715308255578,-500.0,0.00027397,4]
[326752689,1715308255588,-1740.61,0.00027397,4]
[326752690,1715308255597,-1127.35,0.00027397,4]
[326752691,1715308255606,-500.0,0.00027397,4]
[326752692,1715308255616,-1500.3,0.00027397,4]
[326752693,1715308255626,-507.63432879,0.00027397,4]
[326752694,1715308255635,-151.0,0.00027397,7]
[326752695,1715308255644,-892.9,0.00027397,4]
[326752696,1715308255654,-4770.14,0.00027397,4]
[326752697,1715308255663,-151.0,0.00027397,7]
[326752698,1715308255672,-1024.04,0.00027397,4]
[326752699,1715308255682,-663.01,0.00027397,4]
[326752700,1715308255691,-500.0,0.00027397,4]
[326752701,1715308255701,-552.57,0.00027397,4]
[326752702,1715308255710,-1030.0,0.00027397,4]
[326752703,1715308255722,-6040.03,0.00027397,4]
[326752704,1715308255732,-151.0,0.00027397,7]
[326752705,1715308255742,-500.0,0.00027397,4]
[326752706,1715308255752,-153.51138,0.00027397,7]
[326752707,1715308255761,-2720.82,0.00027397,4]
[326752708,1715308255771,-2721.73,0.00027397,4]
[326752709,1715308255781,-151.0,0.00027397,7]
[326752710,1715308255791,-500.0,0.00027397,4]
[326752711,1715308255800,-4111.39,0.00027397,4]
[326752712,1715308255810,-151.0,0.00027397,7]
[326752713,1715308255820,-151.0,0.00027397,7]
[326752714,1715308255830,-151.0,0.00027397,7]
[326752715,1715308255840,-151.0,0.00027397,7]
[326752716,1715308255849,-151.0,0.00027397,7]
[326752717,1715308255858,-1208.46,0.00027397,4]
[326752718,1715308255868,-500.0,0.00027397,4]
[326752719,1715308255877,-1195.42,0.00027397,4]
[326752720,1715308255886,-9229.54,0.00027397,4]
[326752721,1715308255895,-500.0,0.00027397,4]
[326752722,1715308255904,-500.0,0.00027397,4]
[326752723,1715308255913,-500.0,0.00027397,4]
[326752724,1715308255923,-2274.26,0.00027397,4]
[326752725,1715308255932,-153.417748,0.00027397,7]
[326752726,1715308255941,-524.94853354,0.00027397,4]
[326752727,1715308255950,-1421.55,0.00027397,4]
[326752728,1715308255960,-1530.44,0.00027397,4]
[326752729,1715308255969,-656.07,0.00027397,4]
[326752730,1715308255979,-500.0,0.00027397,4]
[326752731,1715308255988,-734.71,0.00027397,4]
[326752732,1715308255998,-500.0,0.00027397,4]
[326752733,1715308256008,-151.0,0.00027397,7]
[326752734,1715308256017,-500.0,0.00027397,4]
[326752735,1715308256027,-151.0,0.00027397,7]
[326752736,1715308256037,-229.362374,0.00027397,7]
[326752737,1715308256046,-151.0,0.00027397,7]
[326752738,1715308256056,-500.0,0.00027397,4]
[326752739,1715308256065,-151.0,0.00027397,7]
[326752740,1715308256075,-821.45,0.00027397,4]
[326752741,1715308256084,-151.0,0.00027397,7]
[326752742,1715308256094,-151.0,0.00027397,7]
[326752743,1715308256104,-151.0,0.00027397,7]
[326752744,1715308256113,-254.920901,0.00027397,7]
[326752745,1715308256123,-1005.56,0.00027397,4]
[326752746,1715308256132,-12483.03,0.00027397,4]
[326752747,1715308256143,-2138.41,0.00027397,4]
[326752748,1715308256152,-3377.34,0.00027397,4]
[326752749,1715308256162,-687.73,0.00027397,4]
[326752750,1715308256172,-2542.49,0.00027397,4]
[326752751,1715308256182,-811.39,0.00027397,4]
[326752752,1715308256191,-151.0,0.00027397,7]
[326752753,1715308256201,-40033.13,0.00027397,4]
[326752754,1715308256210,-151.0,0.00027397,7]
[326752755,1715308256220,-151.0,0.00027397,7]
[326752756,1715308256230,-2110.14,0.00027397,4]
[326752757,1715308256239,-151.0,0.00027397,7]
[326752758,1715308256248,-151.0,0.00027397,7]
[326752759,1715308256258,-151.0,0.00027397,7]
[326752760,1715308256267,-500.0,0.00027397,4]
[326752761,1715308256276,-151.0,0.00027397,7]
[326752762,1715308256285,-151.0,0.00027397,7]
[326752763,1715308256295,-507.15344625,0.00027397,4]
[326752764,1715308256304,-3383.54,0.00027397,4]
[326752765,1715308256314,-505.73241283,0.00027397,4]
[326752766,1715308256325,-1885.42,0.00027397,4]
[326752767,1715308256335,-504.58936024,0.00027397,4]
[326752768,1715308256344,-681.89,0.00027397,4]
[326752769,1715308256353,-959.52,0.00027397,4]
[326752770,1715308256362,-500.0,0.00027397,4]
[326752771,1715308256372,-15859.21,0.00027397,4]
[326752772,1715308256382,-204.14780512,0.00027397,4]
[326752773,1715308256393,-500.0,0.00027397,4]
[326752774,1715308256402,-700.3,0.00027397,4]
[326752775,1715308256413,-151.0,0.00027397,7]
[326752776,1715308256424,-151.0,0.00027397,7]
[326752777,1715308256435,-151.0,0.00027397,7]
[326752778,1715308256445,-151.0,0.00027397,7]
[326752779,1715308256456,-151.0,0.00027397,7]
[326752780,1715308256470,-151.0,0.00027397,7]
[326752781,1715308256480,-500.0,0.00027397,4]
[326752782,1715308256489,-151.0,0.00027397,7]
[326752783,1715308256499,-787.77,0.00027397,4]
[326752784,1715308256509,-151.0,0.00027397,7]
[326752785,1715308256518,-500.0,0.00027397,4]
[326752786,1715308256527,-655.83,0.00027397,4]
[326752787,1715308256538,-151.0,0.00027397,7]
[326752788,1715308256547,-2294.15,0.00027397,4]
[326752789,1715308256556,-192.317248,0.00027397,7]
[326752790,1715308256566,-2856.93,0.00027397,4]
[326752791,1715308256575,-1605.29187,0.00027397,7]
[326752792,1715308256584,-1605.29187,0.00027397,7]
[326752793,1715308256594,-2582.12,0.00027397,4]
[326752794,1715308256603,-1605.29187,0.00027397,7]
[326752795,1715308256612,-1518.62,0.00027397,4]
[326752796,1715308256622,-1605.29187,0.00027397,7]
[326752797,1715308256632,-1605.29187,0.00027397,7]
[326752798,1715308256641,-1605.29187,0.00027397,7]
[326752799,1715308256651,-1605.29187,0.00027397,7]
[326752800,1715308256660,-1236.51,0.00027397,4]
[326752801,1715308256669,-2373.33,0.00027397,4]
[326752802,1715308256678,-1605.29187,0.00027397,7]
[326752803,1715308256689,-1700.04,0.00027397,4]
[326752804,1715308256698,-500.0,0.00027397,4]
[326752805,1715308256707,-1605.29187,0.00027397,7]
[326752806,1715308256717,-1605.29187,0.00027397,7]
[326752807,1715308256726,-1605.29187,0.00027397,7]
[326752808,1715308256735,-1605.29187,0.00027397,7]
[326752809,1715308256745,-1605.29187,0.00027397,7]
[326752810,1715308256755,-1605.29187,0.00027397,7]
[326752811,1715308256764,-500.0,0.00027397,4]
[326752812,1715308256773,-1605.29187,0.00027397,7]
[326752813,1715308256783,-1605.291871,0.00027397,7]
[326752814,1715308256792,-500.0,0.00027397,4]
[326752815,1715308256801,-835.39,0.00027397,4]
[326752816,1715308256811,-500.0,0.00027397,4]
[326752817,1715308256820,-3501.41,0.00027397,4]
[326752818,1715308256829,-2173.89,0.00027397,4]
[326752819,1715308256839,-500.0,0.00027397,4]
[326752820,1715308256848,-500.0,0.00027397,4]
[326752821,1715308256858,-500.0,0.00027397,5]
[326752822,1715308256867,-778.01,0.00027397,4]
[326752823,1715308256876,-500.0,0.00027397,6]
[326752824,1715308256886,-500.0,0.00027397,7]
[326752825,1715308256895,-500.0,0.00027397,8]
[326752826,1715308256905,-500.0,0.00027397,9]
[326752827,1715308256914,-2631.91,0.00027397,4]
[326752828,1715308256923,-500.0,0.00027397,10]
[326752829,1715308256932,-500.0,0.00027397,11]
[326752830,1715308256941,-500.0,0.00027397,12]
[326752831,1715308256951,-500.0,0.00027397,13]
[326752832,1715308256960,-157.918542,0.00027397,7]
[326752833,1715308256968,-332.020287,0.00027397,7]
[326752834,1715308256977,-500.0,0.00027397,14]
[326752835,1715308256987,-332.020287,0.00027397,7]
[326752836,1715308256996,-500.0,0.00027397,15]
[326752837,1715308257005,-500.0,0.00027397,4]
[326752838,1715308257014,-500.0,0.00027397,16]
[326752839,1715308257023,-332.020287,0.00027397,7]
[326752840,1715308257032,-7230.71,0.00027397,4]
[326752841,1715308257042,-282.3732335,0.00027397,17]
[326752842,1715308257051,-332.020287,0.00027397,7]
[326752843,1715308257060,-332.020287,0.00027397,7]
[326752844,1715308257069,-332.020287,0.00027397,7]
[326752845,1715308257319,-332.020287,0.00027397,7]
[326752846,1715308257373,-332.020287,0.00027397,7]
[326752847,1715308257382,-151.0,0.00027397,7]
[326752848,1715308257391,-332.020287,0.00027397,7]
[326752849,1715308257400,-1695.85,0.00027397,4]
[326752850,1715308257410,-152.184617,0.00027397,7]
[326752851,1715308257419,-332.020287,0.00027397,7]
[326752852,1715308257429,-1242.88,0.00027397,4]
[326752853,1715308257439,-628.51,0.00027397,4]
[326752854,1715308257447,-332.020287,0.00027397,7]
[326752855,1715308257461,-852.83,0.00027397,4]
[326752856,1715308257471,-332.020287,0.00027397,7]
[326752857,1715308257482,-510.08073554,0.00027397,4]
[326752858,1715308257491,-332.020287,0.00027397,7]
[326752859,1715308257503,-2999.51,0.00027397,4]
[326752860,1715308257512,-332.020287,0.00027397,7]
[326752861,1715308257522,-332.020287,0.00027397,7]
[326752862,1715308257531,-2536.09,0.00027397,4]
[326752863,1715308257542,-742.77,0.00027397,4]
[326752864,1715308257551,-332.020282,0.00027397,7]
[326752865,1715308257561,-500.0,0.00027397,4]
[326752866,1715308257570,-1721.81,0.00027397,4]
[326752867,1715308257579,-3004.07,0.00027397,4]
[326752868,1715308257588,-734.86,0.00027397,4]
[326752869,1715308257598,-503.81488381,0.00027397,4]
[326752870,1715308257607,-4792.6,0.00027397,4]
[326752871,1715308257616,-3444.0,0.00027397,4]
[326752872,1715308257625,-500.0,0.00027397,4]
[326752873,1715308257635,-3074.92,0.00027397,4]
[326752874,1715308257644,-1655.35,0.00027397,4]
[326752875,1715308257653,-503.78,0.00027397,4]
[326752876,1715308257663,-1166.89,0.00027397,4]
[326752877,1715308257672,-1383.92,0.00027397,4]
[326752878,1715308257681,-9418.0,0.00027397,4]
[326752879,1715308257691,-500.0,0.00027397,4]
[326752880,1715308257700,-500.0,0.00027397,5]
[326752881,1715308257710,-500.0,0.00027397,4]
[326752882,1715308257719,-500.0,0.00027397,6]
[326752883,1715308257729,-500.0,0.00027397,7]
[326752884,1715308257738,-500.0,0.00027397,4]
[326752885,1715308257748,-583.37024145,0.00027397,8]
[326752886,1715308257758,-2076.75,0.00027397,4]
[326752887,1715308257768,-500.0,0.00027397,4]
[326752888,1715308257778,-503.30459111,0.00027397,4]
[326752889,1715308257787,-500.0,0.00027397,4]
[326752890,1715308257796,-2501.18,0.00027397,4]
[326752891,1715308257805,-4854.33,0.00027397,4]
[326752892,1715308257815,-500.0,0.00027397,4]
[326752893,1715308257824,-500.0,0.00027397,4]
[326752894,1715308257833,-2288.29,0.00027397,4]
[326752895,1715308257842,-500.0,0.00027397,4]
[326752896,1715308257852,-857.33,0.00027397,4]
[326752897,1715308257862,-500.0,0.00027397,4]
[326752898,1715308257871,-1944.78,0.00027397,4]
[326752899,1715308257880,-1585.61,0.00027397,4]
[326752900,1715308257889,-500.0,0.00027397,4]
[326752901,1715308257898,-3125.26,0.00027397,4]
[326752902,1715308257907,-500.0,0.00027397,4]
[326752903,1715308257917,-778.93,0.00027397,4]
[326752904,1715308257926,-1572.21,0.00027397,4]
[326752905,1715308257935,-4210.89,0.00027397,4]
[326752906,1715308257945,-3034.36,0.00027397,4]
[326752907,1715308257954,-501.04,0.00027397,4]
[326752908,1715308257963,-7121.68,0.00027397,4]
[326752909,1715308257972,-649.0,0.00027397,4]
[326752910,1715308257981,-4969.67,0.00027397,4]
[326752911,1715308257991,-153.699876,0.00027397,7]
[326752912,1715308258000,-7522.02,0.00027397,4]
[326752913,1715308258010,-2826.45,0.00027397,4]
[326752914,1715308258019,-5000.0,0.00027397,4]
[326752915,1715308258029,-561.74,0.00027397,4]
[326752916,1715308258038,-2997.37,0.00027397,4]
[326752917,1715308258049,-2296.75,0.00027397,4]
[326752918,1715308258059,-500.0,0.00027397,4]
[326752919,1715308258068,-541.47,0.00027397,4]
[326752920,1715308258077,-500.0,0.00027397,4]
[326752921,1715308258086,-500.0,0.00027397,4]
[326752922,1715308258095,-1297.38,0.00027397,4]
[326752923,1715308258105,-500.0,0.00027397,4]
[326752924,1715308258114,-3464.28,0.00027397,4]
[326752925,1715308258123,-1417.01,0.00027397,4]
[326752926,1715308258133,-500.0,0.00027397,4]
[326752927,1715308258143,-27729.9,0.00027397,4]
[326752928,1715308258152,-500.0,0.00027397,4]
[326752929,1715308258162,-6972.09,0.00027397,4]
[326752930,1715308258172,-500.0,0.00027397,4]
[326752931,1715308258181,-2953.58,0.00027397,4]
[326752932,1715308258191,-508.72004853,0.00027397,4]
[326752933,1715308258201,-500.0,0.00027397,4]
[326752934,1715308258210,-696.35,0.00027397,4]
[326752935,1715308258219,-421.40234,0.00027397,7]
[326752936,1715308258229,-500.0,0.00027397,4]
[326752937,1715308258238,-421.40234,0.00027397,7]
[326752938,1715308258247,-813.8,0.00027397,4]
[326752939,1715308258256,-421.40234,0.00027397,7]
[326752940,1715308258265,-421.40234,0.00027397,7]
[326752941,1715308258274,-504.89652347,0.00027397,4]
[326752942,1715308258283,-421.40234,0.00027397,7]
[326752943,1715308258292,-421.40234,0.00027397,7]
[326752944,1715308258302,-421.40234,0.00027397,7]
[326752945,1715308258311,-500.0,0.00027397,4]
[326752946,1715308258320,-421.40234,0.00027397,7]
[326752947,1715308258329,-421.40234,0.00027397,7]
[326752948,1715308258338,-1546.56,0.00027397,4]
[326752949,1715308258348,-421.40234,0.00027397,7]
[326752950,1715308258358,-1736.58,0.00027397,4]
[326752951,1715308258367,-421.40234,0.00027397,7]
[326752952,1715308258376,-421.40234,0.00027397,7]
[326752953,1715308258386,-421.40234,0.00027397,7]
[326752954,1715308258396,-421.402339,0.00027397,7]
[326752955,1715308258405,-500.0,0.00027397,4]
[326752956,1715308258414,-2067.56,0.00027397,4]
[326752957,1715308258424,-151.0,0.00027397,7]
[326752958,1715308258434,-508.03525913,0.00027397,4]
[326752959,1715308258443,-151.0,0.00027397,7]
[326752960,1715308258452,-2756.18,0.00027397,4]
[326752961,1715308258466,-151.0,0.00027397,7]
[326752962,1715308258475,-2376.87,0.00027397,4]
[326752963,1715308258484,-264.527438,0.00027397,7]
[326752964,1715308258493,-667.46,0.00027397,4]
[326752965,1715308258504,-712.47,0.00027397,4]
[326752966,1715308258513,-520.29824598,0.00027397,4]
[326752967,1715308258522,-3367.27,0.00027397,4]
[326752968,1715308258531,-1365.32,0.00027397,4]
[326752969,1715308258544,-2016.98,0.00027397,4]
[326752970,1715308258553,-500.0,0.00027397,4]
[326752971,1715308258562,-502.95168446,0.00027397,4]
[326752972,1715308258572,-513.72,0.00027397,4]
[326752973,1715308258581,-1631.36,0.00027397,4]
[326752974,1715308258591,-689.16,0.00027397,4]
[326752975,1715308258601,-1241.93,0.00027397,4]
[326752976,1715308258610,-7265.59,0.00027397,4]
[326752977,1715308258621,-2078.97,0.00027397,4]
[326752978,1715308258633,-705.17,0.00027397,4]
[326752979,1715308258643,-692.23,0.00027397,4]
[326752980,1715308258652,-4212.67,0.00027397,4]
[326752981,1715308258662,-500.0,0.00027397,4]
[326752982,1715308258674,-500.0,0.00027397,4]
[326752983,1715308258684,-1195.92,0.00027397,4]
[326752984,1715308258693,-743.55,0.00027397,4]
[326752985,1715308258703,-1674.71,0.00027397,4]
[326752986,1715308258712,-511.8433279,0.00027397,4]
[326752987,1715308258721,-764.28,0.00027397,4]
[326752988,1715308258731,-500.0,0.00027397,4]
[326752989,1715308258742,-334.00070932,0.00027397,4]
[326752990,1715308258754,-758.63,0.00027397,4]
[326752991,1715308258763,-2182.28,0.00027397,4]
[326752992,1715308258773,-598.44,0.00027397,4]
[326752993,1715308258782,-3681.8,0.00027397,4]
[326752994,1715308258792,-1032.91,0.00027397,4]
[326752995,1715308258801,-500.0,0.00027397,4]
[326752996,1715308258810,-527.31,0.00027397,4]
[326752997,1715308258819,-500.0,0.00027397,4]
[326752998,1715308258830,-500.0,0.00027397,4]
[326752999,1715308258840,-504.18315886,0.00027397,4]
[326753000,1715308258851,-500.0,0.00027397,4]
[326753001,1715308258860,-500.0,0.00027397,4]
[326753002,1715308258870,-151.0,0.00027397,7]
[326753003,1715308258879,-151.0,0.00027397,7]
[326753004,1715308258888,-151.0,0.00027397,7]
[326753005,1715308258897,-518.37790369,0.00027397,4]
[326753006,1715308258906,-4652.41,0.00027397,4]
[326753007,1715308258915,-151.0,0.00027397,7]
[326753008,1715308258924,-151.0,0.00027397,7]
[326753009,1715308258934,-3227.04,0.00027397,4]
[326753010,1715308258943,-225.96218,0.00027397,7]
[326753011,1715308258952,-500.0,0.00027397,4]
[326753012,1715308258962,-3890.41,0.00027397,4]
[326753013,1715308258971,-181.881273,0.00027397,7]
[326753014,1715308258980,-181.881273,0.00027397,7]
[326753015,1715308258989,-546.52,0.00027397,4]
[326753016,1715308258998,-330.9386752,0.00027397,4]
[326753017,1715308259008,-181.881273,0.00027397,7]
[326753018,1715308259018,-181.881273,0.00027397,7]
[326753019,1715308259027,-500.0,0.00027397,4]
[326753020,1715308259036,-181.881273,0.00027397,7]
[326753021,1715308259046,-5778.27,0.00027397,4]
[326753022,1715308259055,-181.881273,0.00027397,7]
[326753023,1715308259064,-1889.92,0.00027397,4]
[326753024,1715308259073,-1020.93,0.00027397,4]
[326753025,1715308259083,-181.881273,0.00027397,7]
[326753026,1715308259091,-633.91,0.00027397,4]
[326753027,1715308259100,-500.0,0.00027397,4]
[326753028,1715308259110,-181.881273,0.00027397,7]
[326753029,1715308259119,-509.28243082,0.00027397,4]
[326753030,1715308259128,-3241.61,0.00027397,4]
[326753031,1715308259138,-181.881273,0.00027397,7]
[326753032,1715308259147,-9006.97,0.00027397,4]
[326753033,1715308259156,-500.0,0.00027397,4]
[326753034,1715308259165,-151.395788,0.00027397,7]
[326753035,1715308259175,-181.881273,0.00027397,7]
[326753036,1715308259184,-506.16146039,0.00027397,4]
[326753037,1715308259193,-181.881273,0.00027397,7]
[326753038,1715308259203,-1464.22,0.00027397,4]
[326753039,1715308259212,-181.881273,0.00027397,7]
[326753040,1715308259221,-151.0,0.00027397,7]
[326753041,1715308259231,-151.0,0.00027397,7]
[326753042,1715308259240,-1783.14,0.00027397,4]
[326753043,1715308259249,-151.0,0.00027397,7]
[326753044,1715308259258,-181.881273,0.00027397,7]
[326753045,1715308259268,-500.0,0.00027397,4]
[326753046,1715308259277,-151.0,0.00027397,7]
[326753047,1715308259286,-181.881273,0.00027397,7]
[326753048,1715308259296,-500.0,0.00027397,4]
[326753049,1715308259305,-500.0,0.00027397,4]
[326753050,1715308259314,-239.774604,0.00027397,7]
[326753051,1715308259324,-2481.54,0.00027397,4]
[326753052,1715308259334,-481.18007123,0.00027397,4]
[326753053,1715308259345,-500.0,0.00027397,4]
[326753054,1715308259357,-557.06,0.00027397,4]
[326753055,1715308259367,-509.80973334,0.00027397,4]
[326753056,1715308259378,-743.14,0.00027397,4]
[326753057,1715308259389,-500.0,0.00027397,4]
[326753058,1715308259399,-515.97,0.00027397,4]
[326753059,1715308259409,-837.77,0.00027397,4]
[326753060,1715308259419,-837.77,0.00027397,5]
[326753061,1715308259431,-837.77,0.00027397,6]
[326753062,1715308259442,-2779.85,0.00027397,4]
[326753063,1715308259452,-837.77,0.00027397,7]
[326753064,1715308259466,-837.77,0.00027397,8]
[326753065,1715308259475,-837.77,0.00027397,9]
[326753066,1715308259484,-698.63,0.00027397,4]
[326753067,1715308259493,-837.77,0.00027397,10]
[326753068,1715308259503,-19156.28,0.00027397,4]
[326753069,1715308259512,-837.77,0.00027397,11]
[326753070,1715308259521,-3391.16,0.00027397,4]
[326753071,1715308259531,-837.77,0.00027397,12]
[326753072,1715308259540,-837.77,0.00027397,13]
[326753073,1715308259550,-837.77,0.00027397,14]
[326753074,1715308259559,-837.77,0.00027397,15]
[326753075,1715308259568,-837.77,0.00027397,16]
[326753076,1715308259578,-837.77,0.00027397,17]
[326753077,1715308259587,-500.0,0.00027397,4]
[326753078,1715308259596,-837.77,0.00027397,18]
[326753079,1715308259606,-724.87,0.00027397,4]
[326753080,1715308259615,-837.77,0.00027397,19]
[326753081,1715308259624,-837.77,0.00027397,20]
[326753082,1715308259634,-151.0,0.00027397,7]
[326753083,1715308259643,-151.0,0.00027397,7]
[326753084,1715308259652,-151.0,0.00027397,7]
[326753085,1715308259662,-151.0,0.00027397,7]
[326753086,1715308259671,-151.0,0.00027397,7]
[326753087,1715308259681,-151.0,0.00027397,7]
[326753088,1715308259765,-151.0,0.00027397,7]
[326753089,1715308259775,-151.0,0.00027397,7]
[326753090,1715308259784,-151.0,0.00027397,7]
[326753091,1715308259793,-151.0,0.00027397,7]
[326753092,1715308259803,-151.0,0.00027397,7]
[326753093,1715308259813,-151.0,0.00027397,7]
[326753094,1715308259822,-151.0,0.00027397,7]
[326753095,1715308259831,-151.0,0.00027397,7]
[326753096,1715308259841,-151.0,0.00027397,7]
[326753097,1715308259850,-151.0,0.00027397,7]
[326753098,1715308259860,-285.0,0.00027397,7]
[326753099,1715308259869,-150.0,0.00027397,2]
[326753100,1715308259878,-150.0,0.000274,5]
[326753101,1715308259887,-202.1,0.000274,4]
[326753102,1715308259897,-301.03,0.00027428,2]
[326753103,1715308259906,-351.14,0.00027428,2]
[326753104,1715308259916,-193.69,0.00027428,2]
[326753105,1715308259925,-155.45142787,0.00027487,2]
[326753106,1715308259935,-250.53533565,0.00027496,2]
[326753107,1715308259944,-157.051011,0.00027498,14]
[326753108,1715308259953,-155.14433206,0.00027601,2]
[326753109,1715308259963,-155.14433206,0.00027625,2]
[326753110,1715308259972,-500.0,0.00027671,5]
[326753111,1715308259981,-603.30361989,0.00027671,5]
[326753112,1715308259991,-647.29,0.00027671,5]
[326753113,1715308260001,-500.0,0.00027671,5]
[326753114,1715308260010,-500.0,0.00027671,5]
[326753115,1715308260019,-500.0,0.00027671,5]
[326753116,1715308260029,-500.0,0.00027671,5]
[326753117,1715308260039,-500.0,0.00027671,5]
[326753118,1715308260048,-500.0,0.00027671,5]
[326753119,1715308260057,-762.24,0.00027671,5]
[326753120,1715308260067,-786.08,0.00027671,5]
[326753121,1715308260077,-671.3,0.00027671,5]
[326753122,1715308260086,-733.78,0.00027671,5]
[326753123,1715308260095,-604.77382489,0.00027671,5]
[326753124,1715308260105,-514.86,0.00027671,5]
[326753125,1715308260114,-500.0,0.00027671,5]
[326753126,1715308260124,-576.53,0.00027671,5]
[326753127,1715308260133,-500.0,0.00027671,5]
[326753128,1715308260142,-500.0,0.00027671,5]
[326753129,1715308260151,-500.0,0.00027671,5]
[326753130,1715308260160,-500.0,0.00027671,5]
[326753131,1715308260170,-1237.98,0.00027671,5]
[326753132,1715308260179,-815.43,0.00027671,5]
[326753133,1715308260189,-787.45,0.00027671,5]
[326753134,1715308260198,-500.0,0.00027671,5]
[326753135,1715308260208,-506.35606743,0.00027671,5]
[326753136,1715308260217,-521.99,0.00027671,5]
[326753137,1715308260227,-500.0,0.00027671,5]
[326753138,1715308260236,-500.0,0.00027671,5]
[326753139,1715308260246,-905.18,0.00027671,5]
[326753140,1715308260256,-500.0,0.00027671,5]
[326753141,1715308260266,-545.1,0.00027671,5]
[326753142,1715308260275,-689.38,0.00027671,5]
[326753143,1715308260284,-500.0,0.00027671,5]